[Event "1000IM Saint Louis 2022"]
[Site "Saint Louis"]
[Date "2022.07.21"]
[Round "6.5"]
[White "Proleiko, Julian"]
[Black "Williams, Justus"]
[Result "0-1"]
[ECO "D27"]
[WhiteElo "2238"]
[BlackElo "2390"]
[Annotator "TA"]
[PlyCount "133"]
[EventDate "2022.07.20"]
[EventType "tourn"]
[EventCountry "USA"]
[SourceTitle "playchess.com"]
[Source "ChessBase"]
[SourceQuality "1"]
[TimeControl "5400+30"]

{[%evp 16,133,43,26,27,25,46,38,58,65,69,22,25,21,20,15,25,29,30,20,29,-19,-21,-26,0,-26,-14,-31,-22,-13,-20,-14,-41,-79,8,10,13,0,0,-18,6,11,7,8,5,0,0,0,322,319,277,309,328,50,65,0,339,327,316,306,210,75,80,-20,-30,-29,-14,-20,0,0,0,-239,-238,-247,-243,-237,-241,-248,-247,-261,-254,-354,-208,-246,-202,-202,-202,-201,-201,-201,-201,-812,-805,-797,-766,-968,-438,-433,-320,-302,-274,-426,-416,-762,-405,-704,-720,-724,-687,-814,-693,-612,-564,-6318,-5816,-12839,-12838,-12840,-12840,-5800]} 1. d4 {[%emt 0:00:05]} d5 {[%emt 0:04:08]} 2. c4 {[%emt 0:00:13]} c6 {[%emt 0:00:27]} 3. Nf3 {[%emt 0:01:00]} Nf6 {[%emt 0:00:31]} 4. e3 {[%emt 0:00:22]} a6 {[%emt 0:01:52]} 5. Nc3 {[%emt 0:00:15]} e6 {[%emt 0:02:17]} 6. Be2 {[%emt 0:05:15]} dxc4 {[%emt 0:02:33]} 7. a4 {[%emt 0:00:20]} c5 {[%emt 0:01:25]} 8. Bxc4 {[%emt 0:00:36]} Nbd7 {[%emt 0:01:12] 8...Be7 is a critical line.} 9. O-O {[%emt 0:00:18]} cxd4 {[%emt 0:00:51] D27: Queen's Gambit Accepted: Classical main line: 7 e4!? and 7 a4.} 10. exd4 {[%emt 0:00:40]} Nb6 {[%emt 0:01:52] Against d5} 11. Ba2 {[%emt 0:02:36] [#]} Bb4 $146 {[%emt 0:01:33] White is slightly better.} ({Predecessor:} 11... Nbd5 12. Bg5 Be7 13. Bxf6 Bxf6 14. Nxd5 exd5 15. Qb3 O-O 16. Qxd5 Qxd5 17. Bxd5 Rd8 18. Rfe1 g6 {½-½ (27) Urban,L (1835)-Galkin,W (1940) Oberhof 2010}) 12. Bg5 {[%emt 0:06:00]} h6 {[%emt 0:02:44]} 13. Be3 {[%emt 0:00:11]} (13. Bh4 $14 {is more appropriate.}) 13... O-O {[%emt 0:04:10]} 14. Ne5 {[%emt 0:02:52]} Nbd5 {[%emt 0:08:37]} 15. Rc1 {[%emt 0:10:51]} Bd7 {[%emt 0:03:01]} 16. Nxd5 {[%emt 0:02:37]} exd5 {[%emt 0:13:50]} 17. Bb1 {[%emt 0:07:05]} Re8 {[%emt 0:01:43]} 18. f4 {[%emt 0:06:13]} (18. Bf4 $142) 18... Bd6 $11 {[%emt 0:03:09]} 19. Bf2 {[%emt 0:01:11]} Qb6 {[%emt 0:04:16]} 20. Qc2 {[%emt 0:03:37]} Be6 {[%emt 0:05:43]} 21. f5 {[%emt 0:01:21]} Bc8 {[%emt 0:01:41]} 22. Kh1 {[%emt 0:01:23]} Ne4 {[%emt 0:02:30]} 23. Bg1 {[%emt 0:04:25][%cal Of5f6]} Qd8 {[%emt 0:03:13]} 24. f6 {[%emt 0:08:00]} Bxe5 {[%emt 0:05:12]} (24... Nxf6 $2 25. Rxf6 $1 {[%mdl 512]} Qxf6 26. Qh7+ Kf8 27. Rxc8 $1 $18 {[%mdl 512]}) ({Better is} 24... gxf6 $17 25. Nd3 f5) 25. dxe5 {[%emt 0:00:07]} Rxe5 {[%emt 0:00:12]} 26. Bd4 {[%emt 0:00:47]} Rh5 {[%emt 0:01:13]} (26... gxf6 27. Bxe5 fxe5 28. Qe2 $18) 27. Kg1 {[%emt 0:00:45]} Qd6 {[%emt 0:04:15][%csl Gh5][%cal Rd6h2]} 28. Qc7 $1 {[%emt 0:02:20]} g6 {[%emt 0:05:52]} 29. Rfe1 {[%emt 0:08:23]} Bf5 {[%emt 0:05:45]} 30. h3 {[%emt 0:03:49]} Qxc7 {[%emt 0:03:08] Really sharp!} 31. Rxc7 {[%emt 0:00:02]} Ng3 $2 {[%emt 0:00:15][%mdl 8192]} (31... Rh4 $11 {and Black stays safe.}) 32. Ba2 $1 $18 {[%emt 0:06:26]} (32. Rxb7 Bxb1 33. Bf2 Ne4 $1 34. Rxb1 Nxf2 35. Kxf2 Rf5+ 36. Ke3 Rxf6 $11) 32... Be4 {[%emt 0:01:11]} 33. Bf2 {[%emt 0:04:37]} (33. Rxb7 Rc8 $16) 33... Rg5 {[%emt 0:00:18]} 34. Be3 $2 {[%emt 0:09:19]} ({Less strong is} 34. Rxb7 h5 $16) ({Only move:} 34. Re3 $18) 34... Rf5 $14 {[%emt 0:00:09]} 35. Bf2 $2 {[%emt 0:00:02][%mdl 8192]} (35. Rc3 $1 $14) 35... Rg5 $1 $18 {[%emt 0:00:45]} 36. Re3 {[%emt 0:01:15]} ({Not} 36. Rxb7 h5 $16) 36... Nf5 {[%emt 0:01:15] [#]} 37. Rxe4 $1 {[%emt 0:00:02][%mdl 512]} dxe4 {[%emt 0:00:06]} 38. Bxf7+ {[%emt 0:00:57]} (38. Rxf7 $18 {and the rest is easy.} Kh8 39. Rd7) 38... Kh8 $16 {[%emt 0:00:27]} 39. Be6 {[%emt 0:01:00]} (39. Bc5 $16) 39... e3 $11 {[%emt 0:00:12]} 40. Be1 {[%emt 0:00:04] Intending Bc3 and mate. A strong pair of Bishops.} Nd4 {[%emt 0:00:41]} 41. Bg4 {[%emt 0:00:36]} Rf8 {[%emt 0:01:52]} 42. Bc3 {[%emt 0:01:24]} e2 {[%emt 0:01:07][%cal Og5e5] ...Re5! is the strong threat.} 43. Rd7 $2 {[%emt 0:01:39] [#]} (43. Re7 $1 $11 Rd5 44. Bxe2 Nxe2+ 45. Rxe2) 43... Re5 $1 $19 {[%emt 0:00:37]} 44. Rxd4 {[%emt 0:00:59] Strongly threatening Kf2.} e1=Q+ {[%emt 0:00:11]} 45. Bxe1 {[%emt 0:00:01]} Rxe1+ {[%emt 0:00:10][%mdl 4096] Endgame KRR-KRB} 46. Kf2 {[%emt 0:00:02]} Rb1 {[%emt 0:00:50]} 47. Rd6 {[%emt 0:00:45]} Rxb2+ {[%emt 0:00:17]} 48. Ke3 {[%emt 0:00:22]} Rb4 {[%emt 0:00:27]} (48... Rxg2 $142 {Hoping for ...Ra2.} 49. Kf4 Ra2) 49. Bf3 {[%emt 0:00:19]} Rxa4 {[%emt 0:01:42]} 50. Bxb7 {[%emt 0:00:11]} a5 {[%emt 0:00:15][%cal Ba6a5,Ba5a4][%mdl 32]} 51. Bd5 {[%emt 0:00:37]} Ra1 {[%emt 0:01:11]} 52. Be4 {[%emt 0:01:13]} Re1+ {[%emt 0:01:02]} 53. Kd4 $2 {[%emt 0:00:06]} (53. Kf4) 53... Rd1+ {[%emt 0:00:25]} 54. Bd3 {[%emt 0:00:01]} a4 {[%emt 0:00:26] aiming for ...a3.} 55. Kc3 {[%emt 0:00:16]} Rb8 {[%emt 0:01:18]} (55... Rc8+ $142 56. Kb4 a3 57. Kxa3 Rc3+ 58. Kb4 Rcxd3) 56. Kc2 {[%emt 0:01:01]} Rg1 {[%emt 0:00:27] Threatens to win with ...a3.} 57. Be4 {[%emt 0:00:48]} Re1 {[%emt 0:01:06]} 58. Bd5 {[%emt 0:00:28]} (58. Bf3 $142) 58... Rc8+ {[%emt 0:00:55]} 59. Kd2 {[%emt 0:00:08]} (59. Kb2 $142 Rd1 60. Ka2) 59... Re5 {[%emt 0:00:26]} 60. Bb7 {[%emt 0:01:13]} (60. Bf7 $142 a3 61. Ra6) 60... Rb8 {[%emt 0:00:26] Black is clearly winning.} 61. Bd5 {[%emt 0:00:59]} a3 {[%emt 0:00:17]} 62. Bc4 {[%emt 0:00:14]} Ra5 {[%emt 0:00:38] And now ...a2 would win.} 63. Ba2 {[%emt 0:00:04]} Raa8 {[%emt 0:00:26] White must now prevent ...Rb2+.} 64. f7 {[%emt 0:00:42]} Rb2+ {[%emt 0:00:34]} 65. Kc3 {[%emt 0:00:04]} Rxa2 {[%emt 0:00:09]} 66. Re6 {[%emt 0:00:05]} Rf8 {[%emt 0:00:03]} 67. Kd4 {[%emt 0:00:42] Black used his chance.  Weighted Error Value: White=0.57/Black=0.33} 0-1

[Event "1000IM Saint Louis 2022"]
[Site "Saint Louis"]
[Date "2022.07.22"]
[Round "7.1"]
[White "Williams, Justus"]
[Black "Cervantes Landeiro, Thalia"]
[Result "1/2-1/2"]
[ECO "C77"]
[WhiteElo "2390"]
[BlackElo "2234"]
[Annotator "TA"]
[PlyCount "79"]
[EventDate "2022.07.20"]
[EventType "tourn"]
[EventCountry "USA"]
[SourceTitle "playchess.com"]
[Source "ChessBase"]
[SourceQuality "1"]
[TimeControl "5400+30"]

{[%evp 13,79,7,12,0,0,0,12,-7,-8,-25,-22,-23,-23,-23,-17,-32,-12,-29,-12,-67,-57,-65,-80,-93,-88,-93,-100,-95,-108,-133,-141,-117,-141,-231,-174,-195,-183,-188,-103,-152,-163,-143,-90,-89,-78,-72,-63,-64,-86,-76,-52,-58,-16,-8,-14,-8,0,-138,-74,-203,-60,-57,-73,-404,0,0,254,-29994]} 1. e4 {[%emt 0:04:39]} e5 {[%emt 0:00:18]} 2. Nf3 {[%emt 0:00:14]} Nc6 {[%emt 0:00:09]} 3. Bb5 {[%emt 0:00:11][%cal Bf1b5,Bb5a4,Ba4b3][%mdl 32]} a6 {[%emt 0:00:13]} 4. Ba4 {[%emt 0:00:10]} Nf6 {[%emt 0:00:22]} 5. Qe2 {[%emt 0:01:39]} b5 {[%emt 0:04:27]} 6. Bb3 {[%emt 0:00:09]} Be7 {[%emt 0:15:31]} 7. a4 {[%emt 0:08:00]} b4 {[%emt 0:02:27]} 8. d4 $1 {[%emt 0:03:56] 8.d4 is better than 8.a5. C77: Ruy Lopez: 3...a6 4 Ba4 Nf6, unusual lines.} d5 $1 {[%emt 0:13:13]} (8... Nxd4 9. Nxd4 exd4 10. e5 $16) (8... exd4 9. e5 O-O 10. exf6 Bxf6 11. O-O $16) 9. exd5 {[%emt 0:29:43]} Nxd4 {[%emt 0:01:25]} 10. Nxd4 {[%emt 0:01:47] The position is equal.} exd4 {[%emt 0:00:11]} 11. Qc4 {[%emt 0:01:38]} O-O {[%emt 0:03:20] Hoping for ...Bd6.} 12. Qxd4 {[%emt 0:02:10]} Be6 {[%emt 0:07:56][%cal Re6d5]} 13. O-O {[%emt 0:01:13]} Bxd5 {[%emt 0:01:16] [#]} 14. Nd2 $146 {[%emt 0:02:16]} ({Predecessor:} 14. Bxd5 Nxd5 15. Nd2 {½-½ (15) Abravanel,C (2337)-Tournier,M (2225) France 2007}) 14... Re8 {[%emt 0:05:53]} 15. Nc4 {[%emt 0:04:06]} Ne4 {[%emt 0:05:28]} 16. Na5 {[%emt 0:08:09]} (16. Be3 $1 $11) 16... Bxb3 {[%emt 0:02:58]} (16... c6 {with more complications.} 17. Bxd5 cxd5 18. Nc6 Bf6) 17. Qxd8 {[%emt 0:03:40]} Raxd8 {[%emt 0:00:25]} 18. Nxb3 {[%emt 0:00:29]} Bf6 {[%emt 0:05:27]} 19. Rb1 {[%emt 0:00:56]} c5 {[%emt 0:06:38]} 20. Be3 {[%emt 0:02:00]} c4 {[%emt 0:02:44]} 21. Na5 {[%emt 0:00:49]} c3 {[%emt 0:03:34]} 22. bxc3 {[%emt 0:04:00]} Nxc3 {[%emt 0:02:58]} (22... Bxc3 23. Rfd1 $11) (22... bxc3 $6 23. Rfe1 $11) 23. Rb3 {[%emt 0:01:45]} (23. Rbe1 $17 {keeps fighting.}) 23... Rc8 {[%emt 0:00:53]} 24. Nb7 {[%emt 0:02:41]} Be7 {[%emt 0:01:00] Prevents Nd6.} 25. Ra1 {[%emt 0:01:52]} f5 {[%emt 0:03:02]} ({Black should try} 25... Rc7 $19 26. Na5 Rec8) 26. Kf1 {[%emt 0:00:57]} ({Better is} 26. Bd2) 26... Rc7 $17 {[%emt 0:02:57]} 27. Na5 {[%emt 0:00:21]} Bd6 {[%emt 0:02:11]} (27... Nd5 $142 {aiming for ...Bf6.} 28. Re1 Rxc2) 28. Bd2 {[%emt 0:01:44]} Ne4 {[%emt 0:01:27]} 29. Bxb4 {[%emt 0:06:08]} Bxb4 {[%emt 0:00:50]} ({Much weaker is} 29... Bxh2 $6 30. c4 $11) 30. Rxb4 {[%emt 0:00:02]} Rxc2 {[%emt 0:00:07]} 31. f3 {[%emt 0:02:04]} Nd2+ {[%emt 0:01:04]} 32. Kg1 {[%emt 0:00:03]} Re2 {[%emt 0:01:24]} 33. Rb8+ {[%emt 0:00:31]} Kf7 {[%emt 0:00:08]} 34. Rb7+ {[%emt 0:00:07]} Kf6 {[%emt 0:00:43]} 35. Rb6+ {[%emt 0:01:14]} (35. Ra7 $11 {keeps the balance.}) 35... Kg5 $1 {[%emt 0:02:15][%cal Od2f3] White must now prevent ...Nxf3+!} 36. Rb7 {[%emt 0:00:23] [#]} (36. Rd1 $17 {might work better.}) 36... Nxf3+ $1 {[%emt 0:01:56][%mdl 512]} 37. gxf3 $15 {[%emt 0:00:38]} Rg2+ {[%emt 0:00:09]} 38. Kf1 $2 {[%emt 0:00:22][%mdl 8192] [#]} (38. Kh1 $17 Rxh2+ 39. Kg1) 38... Rgf2+ $2 {[%emt 0:00:08]} (38... Kh4 $1 $19 {[%cal Rh4h3] ( -> ...Kh3)} 39. Rf7 Rgf2+ 40. Kg1 Rg2+ 41. Kf1 h5) 39. Kg1 {[%emt 0:00:32]} Kh4 $2 {[%mdl 8192]} (39... Rg2+ $11 40. Kh1 Rxh2+ 41. Kg1 g6) 40. Rb6 $4 {[%emt 0:00:42][%mdl 40960] Weighted Error Value: White=0.42/Black=0.58. An unexpected result.} (40. Rxg7 $18 Rxf3 41. Rxh7+ Kg5 42. Rh8) 1/2-1/2

[Event "1000IM Saint Louis 2022"]
[Site "Saint Louis"]
[Date "2022.07.22"]
[Round "7.2"]
[White "Stefanov, Emil"]
[Black "Proleiko, Julian"]
[Result "1-0"]
[ECO "B53"]
[WhiteElo "2342"]
[BlackElo "2238"]
[Annotator "TA"]
[PlyCount "73"]
[EventDate "2022.07.20"]
[EventType "tourn"]
[EventCountry "USA"]
[SourceTitle "playchess.com"]
[Source "ChessBase"]
[SourceQuality "1"]
[TimeControl "5400+30"]

{[%evp 10,73,17,11,24,16,20,25,28,16,42,20,26,21,30,26,28,26,31,32,41,40,68,69,79,67,83,62,89,30,46,28,133,127,173,173,169,177,162,166,287,286,555,516,506,233,270,186,335,314,562,570,554,555,636,517,1062,1047,1018,987,922,739,29989,2544,29991,29992]} 1. e4 {[%emt 0:00:10]} c5 {[%emt 0:01:18]} 2. Nf3 {[%emt 0:00:10]} d6 {[%emt 0:00:26]} 3. d4 cxd4 {[%emt 0:00:03]} 4. Qxd4 {[%emt 0:00:16]} a6 {[%emt 0:00:27]} 5. c4 {[%emt 0:01:21]} Nc6 {[%emt 0:00:06]} 6. Qe3 {[%emt 0:00:34]} g6 {[%emt 0:01:02] B53: Sicilian: 2...d6: Lines with Qxd4.} 7. Be2 {[%emt 0:01:29]} Bg7 {[%emt 0:05:44]} 8. O-O {[%emt 0:01:58]} Bg4 {[%emt 0:01:52] White has an edge.} 9. Nc3 {[%emt 0:01:41]} Rc8 {[%emt 0:03:08]} 10. b3 {[%emt 0:13:54]} Nf6 {[%emt 0:10:48][%cal Of6e4,Bg8f6,Bf6d7,Bd7c5][%mdl 32]} 11. Bb2 {[%emt 0:11:35]} O-O {[%emt 0:00:22]} 12. Rab1 {[%emt 0:02:20]} Nd7 {[%emt 0:11:45]} 13. Rfd1 {[%emt 0:00:20] [#]} Nc5 $146 {[%emt 0:06:49]} ({Predecessor:} 13... Qa5 14. h3 Bxf3 15. Bxf3 Qc5 16. Qxc5 Nxc5 17. Nd5 Bxb2 18. Rxb2 a5 19. g3 Kg7 {½-½ (48) Harika,D (2515)-Hou,Y (2658) Chess.com INT 2020}) 14. Rd2 {[%emt 0:08:58]} Qa5 {[%emt 0:17:43]} 15. Rbd1 {[%emt 0:01:31]} Rb8 {[%emt 0:03:18]} 16. Nd5 {[%emt 0:04:09][%cal Ob3b4] aiming for b4!} Bxf3 {[%emt 0:04:47]} 17. Bxg7 {[%emt 0:11:12]} Kxg7 {[%emt 0:00:52]} (17... Bxe2 $2 18. Bxf8 (18. Bc3 Qd8 $16) 18... Bxd1 19. Bxe7 $18) 18. Bxf3 {[%emt 0:00:11][%cal Ob3b4]} e5 {[%emt 0:03:16]} 19. h4 {[%emt 0:00:27]} ({White should play} 19. Nc3 $16) 19... Ne6 $11 {[%emt 0:02:23]} 20. h5 {[%emt 0:01:14]} h6 {[%emt 0:01:27] [#] White now steadily converts the win.} (20... Qd8 $11) 21. Bg4 $1 $16 {[%emt 0:02:38] White is more active.} g5 {[%emt 0:03:10]} (21... f5 $16 {was necessary.} 22. Be2 Ng5) 22. Bxe6 $18 {[%emt 0:11:38]} (22. Qf3 $6 Qd8 $14) 22... fxe6 {[%emt 0:00:04]} 23. Nb6 {[%emt 0:00:12]} Rbd8 {[%emt 0:01:26]} 24. Rxd6 {[%emt 0:00:19]} Nd4 {[%emt 0:00:08] [#]} (24... Rxd6 $142 25. Rxd6 Nd4) 25. Nd7 $1 {[%emt 0:05:16] And now R1xd4 would win.} (25. Rd7+ Rxd7 26. Nxd7 Rd8 27. Rxd4 exd4 28. Qxd4+ Kg8 $11) 25... Rf4 $2 {[%emt 0:02:03]} (25... Kg8 26. a4 (26. Nxf8 Rxd6 27. Ng6 Nc2 $16) 26... Rf7 27. Nxe5 Rxd6 28. Nxf7 Nf5) 26. c5 {[%emt 0:05:23]} Qc3 {[%emt 0:03:20] ( -> ...Qxe3)} 27. Re1 {[%emt 0:07:53]} (27. Qxc3 Ne2+ 28. Kf1 Nxc3 29. Nxe5 Rxd6 30. Rxd6 Nxe4 $16) (27. Nxe5 Qxe3 28. Ng4 Qe2 29. R6xd4 Rxd4 30. Rxd4 Qe1+ 31. Kh2 Rxg4 32. Rd7+ Kf6 33. Rd3 Ke5 34. Rg3 Rh4+ 35. Rh3 Rxh3+ 36. Kxh3 Qh1+ 37. Kg3 Kxe4 38. f3+ Ke3 39. Kg4 Qxg2#) (27. g3 $142 Qxe3 28. fxe3 Nf3+ 29. Kg2) 27... Qb4 {[%emt 0:00:15] White must now prevent ...Nc2.} 28. Rc1 {[%emt 0:01:04] Against Nc2. Threatens to win with Rc4.} ({Not} 28. Nxe5 Rxd6 29. cxd6 Nc2 $16) 28... Qb5 {[%emt 0:00:39]} (28... Nb5 $142 29. Rdd1 Qxe4) 29. Rxd4 {[%emt 0:00:14]} exd4 {[%emt 0:00:28]} (29... Rxd7 30. Rd6 Rff7 31. Rxe6 Rd3) 30. Qxd4+ {[%emt 0:00:02]} Kf7 {[%emt 0:00:11]} 31. Rd1 {[%emt 0:00:57] Ne5+ is the strong threat.} Qe2 {[%emt 0:00:48]} 32. f3 {[%emt 0:00:42] Intending Ne5+ and mate.} ({Less strong is} 32. Ne5+ Kg7 33. Nd7+ (33. Qxd8 $2 {is a self mate.} Qxf2+ 34. Kh2 Rh4#) 33... Kg8 $16) 32... Re8 {[%emt 0:01:10]} (32... Kg8 $142 33. Nf6+ Rxf6 34. Qxd8+ Rf8) 33. Ne5+ {[%emt 0:00:15]} Kg8 {[%emt 0:00:07]} 34. Ng6 {[%emt 0:00:53] White threatens Qh8+ and mate.} e5 {[%emt 0:00:12]} 35. Qd7 {[%emt 0:00:32]} Qe3+ {[%emt 0:00:06]} 36. Kh2 {[%emt 0:00:12]} (36. Kh1 $142 Rff8 37. Nxf8 Kxf8 38. Qd6+ Kg8 39. Qg6+ Kf8 40. Qxh6+ Kg8 41. Qg6+ Kf8 42. Qf6+ Kg8 43. h6 Qg1+ 44. Kxg1 Re7 45. Qxe7 Kh8 46. Qg7#) 36... Ref8 {[%emt 0:00:48]} 37. Qe6+ {[%emt 0:00:34] Weighted Error Value: White=0.23 (precise) /Black=0.81} 1-0

[Event "1000IM Saint Louis 2022"]
[Site "Saint Louis"]
[Date "2022.07.22"]
[Round "7.3"]
[White "Altman, Joshua"]
[Black "Sethuraman, Sandeep"]
[Result "1/2-1/2"]
[ECO "D35"]
[WhiteElo "2162"]
[BlackElo "2305"]
[Annotator "TA"]
[PlyCount "74"]
[EventDate "2022.07.20"]
[EventType "tourn"]
[EventCountry "USA"]
[SourceTitle "playchess.com"]
[Source "ChessBase"]
[SourceQuality "1"]
[TimeControl "5400+30"]

{[%evp 15,74,0,-7,0,-9,-3,0,0,2,-4,0,0,-11,-3,0,-6,0,-27,-31,-26,-13,-14,-20,-20,-8,-3,0,0,0,0,0,0,0,0,0,0,0,0,52,58,54,12,12,0,0,0,0,0,0,0,108,45,45,45,36,42,40,42,40,-57,-59]} 1. d4 {[%emt 0:00:02]} Nf6 {[%emt 0:00:04]} 2. c4 {[%emt 0:00:03]} e6 {[%emt 0:00:04]} 3. Nf3 {[%emt 0:00:06]} d5 {[%emt 0:00:05]} 4. cxd5 {[%emt 0:00:16]} exd5 {[%emt 0:00:06]} 5. Nc3 {[%emt 0:00:04]} c6 {[%emt 0:00:10]} 6. Bg5 {[%emt 0:00:09]} h6 {[%emt 0:00:06]} 7. Bh4 {[%emt 0:00:27]} Bf5 {[%emt 0:00:05]} 8. e3 {[%emt 0:00:55]} Nbd7 {[%emt 0:00:08]} 9. Bd3 {[%emt 0:00:21] D35: Queen's Gambit Declined: Exchange Variation.} Bxd3 {[%emt 0:00:07]} 10. Qxd3 {[%emt 0:00:02]} Bd6 {[%emt 0:00:08]} 11. O-O {[%emt 0:01:37] The position is equal.} O-O {[%emt 0:00:06]} 12. e4 {[%emt 0:12:24]} dxe4 {[%emt 0:00:28]} 13. Nxe4 {[%emt 0:00:02]} Be7 {[%emt 0:00:30]} 14. Ng3 {[%emt 0:04:17]} Re8 {[%emt 0:15:24] [#]} (14... g5 $2 15. Nf5 gxh4 16. Qe3 $16) 15. Nf5 $146 {[%emt 0:01:29]} ({Predecessor:} 15. Rfe1 Qb6 16. Nf5 Bf8 17. Bxf6 Nxf6 18. Ne5 g6 19. Qg3 Kh7 20. Qh4 Nd5 21. Nxh6 {½-½ (21) Morschel,D (2300)-Ould Ahmed,S (2344) ICCF email 2008}) 15... Bf8 {[%emt 0:03:30]} 16. Rad1 {[%emt 0:04:19]} Qa5 {[%emt 0:10:25]} 17. a3 {[%emt 0:05:26]} g6 {[%emt 0:13:10]} 18. Ne3 {[%emt 0:00:31]} Bg7 {[%emt 0:01:26]} 19. Qb3 {[%emt 0:11:27]} Qb6 {[%emt 0:10:23]} 20. Qc2 {[%emt 0:02:02]} Re6 {[%emt 0:08:11]} (20... Qb5 {is more complex.} 21. Nc4 Nb6 22. Nd6 Re2) 21. Bg3 {[%emt 0:09:39]} Nd5 {[%emt 0:04:11]} 22. Nc4 {[%emt 0:05:50]} Qa6 {[%emt 0:00:33]} 23. h3 {[%emt 0:03:27]} Rae8 {[%emt 0:02:15]} 24. Nd6 {[%emt 0:03:24]} R8e7 {[%emt 0:00:21]} 25. Nc8 {[%emt 0:00:54]} Re8 {[%emt 0:00:04]} 26. Nd6 {[%emt 0:00:08]} Rd8 {[%emt 0:00:58]} (26... R8e7 $11) 27. Rfe1 $36 {[%emt 0:01:36][%mdl 2048] [#] Rxe6 is the strong threat. White has some pressure.} Nf8 {[%emt 0:00:30]} 28. Ne4 {[%emt 0:04:57]} Rde8 {[%emt 0:00:35]} 29. Be5 {[%emt 0:02:31]} Nd7 {[%emt 0:02:00][%cal Rg7e5]} 30. Nd6 {[%emt 0:03:34]} R8e7 {[%emt 0:01:07][%cal Rd7e5]} 31. Nc8 {[%emt 0:00:50]} Re8 {[%emt 0:00:05]} 32. Nd6 {[%emt 0:00:04]} Nxe5 {[%emt 0:04:49]} (32... R8e7 $11) 33. Nxe8 {[%emt 0:01:27]} (33. dxe5 $16 Rf8 34. g3) 33... Nxf3+ {[%emt 0:00:04]} 34. gxf3 {[%emt 0:00:02] [#] aiming for Rxe6.} Rxe1+ {[%emt 0:00:05]} 35. Rxe1 {[%emt 0:00:02]} Bxd4 {[%emt 0:00:03]} 36. Qe4 {[%emt 0:16:48]} Qb6 {[%emt 0:14:06]} (36... Bxb2 $2 37. Nd6 Qxa3 38. Qe8+ Kh7 39. Qxf7+ Bg7 40. Ne8 $18 (40. Nxb7 Qc3 $16)) 37. Nd6 {[%emt 0:05:17]} (37. Re2 $14) 37... Bxf2+ {Weighted Error Value: White=0.13 (very precise) /Black=0.12 (very precise)} 1/2-1/2

[Event "1000IM Saint Louis 2022"]
[Site "Saint Louis"]
[Date "2022.07.22"]
[Round "7.4"]
[White "Nyzhnyk, Illya"]
[Black "Tokhirjonova, Gulrukhbegim"]
[Result "*"]
[ECO "D78"]
[WhiteElo "2686"]
[BlackElo "2329"]
[Annotator "TA"]
[PlyCount "28"]
[EventDate "2022.07.20"]
[EventType "tourn"]
[EventCountry "USA"]
[SourceTitle "playchess.com"]
[Source "ChessBase"]
[SourceQuality "1"]
[TimeControl "5400+30"]

{[%evp 15,28,23,26,16,31,47,17,24,33,0,9,0,-5,-26,-24]} 1. d4 {[%emt 0:00:04]} Nf6 {[%emt 0:02:49]} 2. g3 {[%emt 0:00:05]} g6 {[%emt 0:00:31]} 3. Bg2 {[%emt 0:00:14]} d5 {[%emt 0:00:09]} 4. c4 {[%emt 0:00:05]} dxc4 {[%emt 0:01:55]} 5. Qa4+ {[%emt 0:01:02]} c6 {[%emt 0:02:21]} 6. Qxc4 {[%emt 0:00:39]} Bg7 {[%emt 0:00:11]} 7. Nf3 {[%emt 0:00:23]} O-O {[%emt 0:00:38]} 8. O-O {[%emt 0:00:13]} Be6 {[%emt 0:03:56] 8...b5 is the modern continuation.} 9. Qb4 {[%emt 0:03:46] D78: Fianchetto Grünfeld: 6 0-0 c6.} Qb6 {[%emt 0:06:11]} 10. Qxe7 {[%emt 0:08:13]} Na6 {[%emt 0:04:24]} 11. Qa3 {[%emt 0:04:53] [#]} Rfd8 $146 {[%emt 0:08:28]} (11... Bc4 12. Nc3 Rfe8 13. Qa4 Bxe2 14. Nxe2 Rxe2 15. Ne5 Rd8 16. Qc4) ({Predecessor:} 11... Bc4 12. Nc3 Rfe8 13. Qa4 Bxe2 14. Nxe2 Rxe2 15. Ne5 Rd8 16. Qc4 {1-0 (16) Bosiocic,M (2563)-Lorscheid,G (2237) Ditzingen 2015}) 12. Qa4 {[%emt 0:25:29]} c5 {[%emt 0:07:20][%cal Rc5d4]} 13. dxc5 {[%emt 0:11:37]} Nxc5 {[%emt 0:00:31]} 14. Qa3 {[%emt 0:00:04]} Bf8 {[%emt 0:08:50] Weighted Error Value: White=0.12 (very precise) /Black=0.01 (flawless)} *